[Event "Live Chess"]
[Site "Chess.com"]
[Date "2023.05.21"]
[Round "-"]
[White "luckywookie"]
[Black "domrobson"]
[Result "0-1"]
[WhiteElo "811"]
[BlackElo "1757"]
[TimeControl "300"]
[EndTime "7:43:22 PDT"]
[Termination "domrobson won by checkmate"]

1. e4 {[%clk 0:04:55.6]} 1... e5 {[%clk 0:04:59.5]} 2. Nf3 {[%clk 0:04:52.8]}
2... Nc6 {[%clk 0:04:59.1]} 3. c3 {[%clk 0:04:49.7]} 3... d5 {[%clk 0:04:57.4]}
4. exd5 {[%clk 0:04:47.5]} 4... Qxd5 {[%clk 0:04:55.4]} 5. d3 {[%clk 0:04:40.1]}
5... Bg4 {[%clk 0:04:52.3]} 6. Be2 {[%clk 0:04:38.6]} 6... O-O-O {[%clk
0:04:51.1]} 7. c4 {[%clk 0:04:36.3]} 7... Bb4+ {[%clk 0:04:41.3]} 8. Nc3 {[%clk
0:04:34.2]} 8... Qa5 {[%clk 0:04:39.8]} 9. Bd2 {[%clk 0:04:22.5]} 9... Bxf3
{[%clk 0:04:36.7]} 10. Bxf3 {[%clk 0:04:21.1]} 10... Rxd3 {[%clk 0:04:30.5]} 11.
Bg4+ {[%clk 0:04:10.5]} 11... Kb8 {[%clk 0:04:26]} 12. Rc1 {[%clk 0:03:55.9]}
12... Nf6 {[%clk 0:04:22.7]} 13. Bf3 {[%clk 0:03:49.2]} 13... Rhd8 {[%clk
0:04:20.4]} 14. O-O {[%clk 0:03:34.8]} 14... Rxd2 {[%clk 0:04:18.5]} 15. Qa4
{[%clk 0:03:31.2]} 15... Bxc3 {[%clk 0:04:16.5]} 16. Qxa5 {[%clk 0:03:30.3]}
16... Bxa5 {[%clk 0:04:15]} 17. Bxc6 {[%clk 0:03:24.9]} 17... bxc6 {[%clk
0:04:13.8]} 18. a3 {[%clk 0:03:20.9]} 18... Rxb2 {[%clk 0:04:11.9]} 19. Rb1
{[%clk 0:03:18.4]} 19... Rd2 {[%clk 0:04:10.3]} 20. h3 {[%clk 0:03:16.7]} 20...
Rxf2 {[%clk 0:04:05.3]} 21. Rxf2 {[%clk 0:03:14.2]} 21... Rxb1+ {[%clk
0:04:03.5]} 22. Rf1 {[%clk 0:03:13.5]} 22... Bb6+ {[%clk 0:04:02.3]} 23. Kh2
{[%clk 0:03:09.7]} 23... Rxf1 {[%clk 0:04:02.2]} 24. h4 {[%clk 0:03:06.6]} 24...
h5 {[%clk 0:04:00.2]} 25. a4 {[%clk 0:03:06.1]} 25... Bf2 {[%clk 0:03:56.2]} 26.
a5 {[%clk 0:03:04.7]} 26... Ng4+ {[%clk 0:03:54]} 27. Kh3 {[%clk 0:03:01.8]}
27... Rh1# {[%clk 0:03:53.9]} 0-1

[Event "Live Chess"]
[Site "Chess.com"]
[Date "2023.05.21"]
[Round "-"]
[White "TheSmoulderingMaster"]
[Black "whatnot126"]
[Result "0-1"]
[WhiteElo "1671"]
[BlackElo "2068"]
[TimeControl "300"]
[EndTime "7:43:28 PDT"]
[Termination "whatnot126 won by resignation"]

1. e4 {[%clk 0:04:58.6]} 1... d6 {[%clk 0:04:59.2]} 2. d4 {[%clk 0:04:57.3]}
2... Nf6 {[%clk 0:04:58.5]} 3. Nc3 {[%clk 0:04:56.6]} 3... g6 {[%clk 0:04:57.8]}
4. Nf3 {[%clk 0:04:55.7]} 4... Bg7 {[%clk 0:04:57.4]} 5. Bf4 {[%clk 0:04:54.7]}
5... O-O {[%clk 0:04:55.6]} 6. Qd2 {[%clk 0:04:53.9]} 6... c6 {[%clk 0:04:53.9]}
7. O-O-O {[%clk 0:04:52.7]} 7... b5 {[%clk 0:04:52.8]} 8. e5 {[%clk 0:04:50.8]}
8... b4 {[%clk 0:04:34.6]} 9. Ne2 {[%clk 0:04:40.6]} 9... Ne4 {[%clk 0:04:28.7]}
10. Qe3 {[%clk 0:04:38]} 10... d5 {[%clk 0:04:26.2]} 11. Bh6 {[%clk 0:04:35]}
11... a5 {[%clk 0:04:09.5]} 12. Ng3 {[%clk 0:04:32.4]} 12... a4 {[%clk 0:03:59]}
13. Bxg7 {[%clk 0:04:30.6]} 13... Kxg7 {[%clk 0:03:58]} 14. Nxe4 {[%clk
0:04:29.4]} 14... dxe4 {[%clk 0:03:57.9]} 15. h4 {[%clk 0:04:27.8]} 15... h5
{[%clk 0:03:54]} 16. Qxe4 {[%clk 0:04:25.9]} 16... Bf5 {[%clk 0:03:50.8]} 17.
Qf4 {[%clk 0:04:22.6]} 17... b3 {[%clk 0:03:45]} 18. axb3 {[%clk 0:04:20.4]}
18... axb3 {[%clk 0:03:43.9]} 19. cxb3 {[%clk 0:04:20]} 19... Qb6 {[%clk
0:03:30.4]} 20. Bc4 {[%clk 0:04:14.8]} 20... Qb4 {[%clk 0:03:24.9]} 21. Bd3
{[%clk 0:03:43.3]} 21... Ra1+ {[%clk 0:03:22.3]} 22. Kc2 {[%clk 0:03:42.1]}
22... Bxd3+ {[%clk 0:03:05.1]} 23. Kxd3 {[%clk 0:03:40.9]} 23... Qxb3+ {[%clk
0:03:03.1]} 24. Ke4 {[%clk 0:03:40.2]} 24... Rxd1 {[%clk 0:03:01.4]} 25. Rxd1
{[%clk 0:03:37.6]} 25... Qxd1 {[%clk 0:03:01.3]} 26. Ng5 {[%clk 0:03:35.5]}
26... Qe2+ {[%clk 0:02:57.5]} 27. Qe3 {[%clk 0:03:31.8]} 27... Qxe3+ {[%clk
0:02:56.5]} 28. fxe3 {[%clk 0:03:31.2]} 0-1

[Event "Live Chess"]
[Site "Chess.com"]
[Date "2023.05.21"]
[Round "-"]
[White "AMCWAML"]
[Black "grillage"]
[Result "1-0"]
[WhiteElo "2248"]
[BlackElo "1784"]
[TimeControl "300"]
[EndTime "7:43:31 PDT"]
[Termination "AMCWAML won by resignation"]

1. e4 {[%clk 0:04:58.8]} 1... d5 {[%clk 0:04:56.7]} 2. exd5 {[%clk 0:04:56.9]}
2... Qxd5 {[%clk 0:04:55.2]} 3. Nf3 {[%clk 0:04:53.6]} 3... Bg4 {[%clk
0:04:52.6]} 4. Be2 {[%clk 0:04:48.5]} 4... Nc6 {[%clk 0:04:51.8]} 5. Nc3 {[%clk
0:04:46.6]} 5... Qd7 {[%clk 0:04:48.9]} 6. d3 {[%clk 0:04:40.3]} 6... O-O-O
{[%clk 0:04:47.6]} 7. h3 {[%clk 0:04:38.4]} 7... Bh5 {[%clk 0:04:45]} 8. Be3
{[%clk 0:04:37]} 8... Nf6 {[%clk 0:04:41.2]} 9. b4 {[%clk 0:04:33.1]} 9... e6
{[%clk 0:04:23.8]} 10. b5 {[%clk 0:04:32.2]} 10... Nb4 {[%clk 0:04:13.7]} 11. a3
{[%clk 0:04:20.3]} 11... Nbd5 {[%clk 0:04:12.2]} 12. Nxd5 {[%clk 0:04:10.3]}
12... Nxd5 {[%clk 0:04:09.7]} 13. Bd2 {[%clk 0:04:09.8]} 13... Be7 {[%clk
0:03:54.7]} 14. a4 {[%clk 0:04:01.7]} 14... g5 {[%clk 0:03:48]} 15. c4 {[%clk
0:03:54.2]} 15... Nf4 {[%clk 0:03:46.8]} 16. Bxf4 {[%clk 0:03:43.2]} 16... gxf4
{[%clk 0:03:45.4]} 17. Ne5 {[%clk 0:03:39.5]} 17... Bxe2 {[%clk 0:03:42.3]} 18.
Qxe2 {[%clk 0:03:35.2]} 18... Qd4 {[%clk 0:03:35.8]} 19. O-O-O {[%clk
0:03:28.4]} 19... Rhf8 {[%clk 0:03:32]} 20. Qb2 {[%clk 0:03:20.2]} 20... Qxb2+
{[%clk 0:03:22.4]} 21. Kxb2 {[%clk 0:03:20.1]} 21... Bf6 {[%clk 0:03:21.7]} 22.
Rhe1 {[%clk 0:03:15]} 22... Rg8 {[%clk 0:03:16.3]} 23. Kb3 {[%clk 0:03:06.6]}
23... Bxe5 {[%clk 0:03:14.3]} 24. Rxe5 {[%clk 0:03:05.5]} 24... Rxg2 {[%clk
0:03:13.6]} 25. Rd2 {[%clk 0:02:45.2]} 25... Rdg8 {[%clk 0:02:59.7]} 26. Rh5
{[%clk 0:02:44]} 26... R8g7 {[%clk 0:02:59]} 27. Rh4 {[%clk 0:02:42.1]} 27... e5
{[%clk 0:02:54.5]} 28. d4 {[%clk 0:02:39.2]} 28... exd4 {[%clk 0:02:49.4]} 29.
Rxf4 {[%clk 0:02:33.3]} 29... Rh2 {[%clk 0:02:45.3]} 30. Rfxd4 {[%clk
0:02:29.5]} 30... b6 {[%clk 0:02:43.5]} 31. h4 {[%clk 0:02:18.5]} 31... Rgg2
{[%clk 0:02:41.1]} 32. Rf4 {[%clk 0:02:15.6]} 32... Rh3+ {[%clk 0:02:38.5]} 33.
Kb4 {[%clk 0:02:12.3]} 33... Rgh2 {[%clk 0:02:38]} 34. Rxf7 {[%clk 0:02:09.6]}
34... Rxh4 {[%clk 0:02:35.9]} 35. Rdd7 {[%clk 0:02:08.8]} 35... Rh1 {[%clk
0:02:19.6]} 36. Rxc7+ {[%clk 0:02:07.3]} 36... Kb8 {[%clk 0:02:17.4]} 37. Rb7+
{[%clk 0:02:06.3]} 37... Ka8 {[%clk 0:02:11.5]} 38. Rxa7+ {[%clk 0:02:05.1]}
38... Kb8 {[%clk 0:02:10.9]} 39. Rfb7+ {[%clk 0:02:03.2]} 39... Kc8 {[%clk
0:02:10]} 40. Rf7 {[%clk 0:02:00.6]} 40... Rb1+ {[%clk 0:02:08.2]} 41. Ka3
{[%clk 0:01:59.4]} 41... Kb8 {[%clk 0:02:07.4]} 42. Rab7+ {[%clk 0:01:52.2]}
42... Ka8 {[%clk 0:02:05.8]} 43. Rbe7 {[%clk 0:01:44.9]} 1-0

[Event "Live Chess"]
[Site "Chess.com"]
[Date "2023.05.21"]
[Round "-"]
[White "raminguy"]
[Black "DRS44"]
[Result "1-0"]
[WhiteElo "1956"]
[BlackElo "1278"]
[TimeControl "300"]
[EndTime "7:43:51 PDT"]
[Termination "raminguy won on time"]

1. d4 {[%clk 0:04:59.8]} 1... d5 {[%clk 0:04:51.3]} 2. Nc3 {[%clk 0:04:59.3]}
2... Nf6 {[%clk 0:04:45.9]} 3. Bf4 {[%clk 0:04:58.5]} 3... Bf5 {[%clk 0:04:39]}
4. e3 {[%clk 0:04:56.4]} 4... c5 {[%clk 0:04:35.1]} 5. dxc5 {[%clk 0:04:51.9]}
5... Nc6 {[%clk 0:04:31.2]} 6. a3 {[%clk 0:04:50.5]} 6... e5 {[%clk 0:04:23.7]}
7. Bg5 {[%clk 0:04:49]} 7... d4 {[%clk 0:04:15.5]} 8. Nb5 {[%clk 0:04:28.6]}
8... Bxc5 {[%clk 0:04:05]} 9. Bxf6 {[%clk 0:04:24.9]} 9... gxf6 {[%clk
0:03:57.1]} 10. exd4 {[%clk 0:04:22.1]} 10... Nxd4 {[%clk 0:03:45]} 11. Nxd4
{[%clk 0:04:20.2]} 11... Bxd4 {[%clk 0:03:37.7]} 12. c3 {[%clk 0:04:17.5]} 12...
Bb6 {[%clk 0:03:34.2]} 13. Bb5+ {[%clk 0:04:13.3]} 13... Kf8 {[%clk 0:03:27.9]}
14. Qh5 {[%clk 0:03:59.7]} 14... Bg6 {[%clk 0:02:57.4]} 15. Qh6+ {[%clk
0:03:56.8]} 15... Kg8 {[%clk 0:02:50.1]} 16. Nh3 {[%clk 0:03:53.4]} 16... Qf8
{[%clk 0:02:23.3]} 17. Qh4 {[%clk 0:03:43.1]} 17... Bd8 {[%clk 0:02:11.6]} 18.
O-O {[%clk 0:03:32.9]} 18... f5 {[%clk 0:02:02.1]} 19. Qg3 {[%clk 0:03:17.6]}
19... f4 {[%clk 0:01:49.7]} 20. Qg4 {[%clk 0:03:09.4]} 20... f5 {[%clk
0:01:36.2]} 21. Bc4+ {[%clk 0:03:07]} 21... Kg7 {[%clk 0:01:29.4]} 22. Qf3
{[%clk 0:02:36.5]} 22... Bf6 {[%clk 0:01:17]} 23. Qxb7+ {[%clk 0:02:30.7]} 23...
Qe7 {[%clk 0:01:06.5]} 24. Qf3 {[%clk 0:02:22.4]} 24... Rac8 {[%clk 0:00:53.5]}
25. b3 {[%clk 0:01:54.4]} 25... Rhd8 {[%clk 0:00:46.6]} 26. Rad1 {[%clk
0:01:49.9]} 26... Rxd1 {[%clk 0:00:37.7]} 27. Rxd1 {[%clk 0:01:47.6]} 27... Rd8
{[%clk 0:00:32.8]} 28. Rxd8 {[%clk 0:01:38.9]} 28... Qxd8 {[%clk 0:00:24.3]} 29.
Qd5 {[%clk 0:01:36.5]} 29... Qxd5 {[%clk 0:00:20.9]} 30. Bxd5 {[%clk 0:01:35]}
30... Kf8 {[%clk 0:00:17.8]} 31. f3 {[%clk 0:01:32.8]} 31... Ke7 {[%clk
0:00:17.7]} 32. Nf2 {[%clk 0:01:31.3]} 32... Kd6 {[%clk 0:00:17.6]} 33. c4
{[%clk 0:01:29.5]} 33... Kc5 {[%clk 0:00:09.1]} 34. Kf1 {[%clk 0:01:25.6]} 34...
Kd4 {[%clk 0:00:07.4]} 35. Ke2 {[%clk 0:01:23.9]} 35... Kc3 {[%clk 0:00:02.9]}
36. c5 {[%clk 0:01:19.1]} 1-0

[Event "Live Chess"]
[Site "Chess.com"]
[Date "2023.05.21"]
[Round "-"]
[White "HadesLearmonth"]
[Black "SimpleHarmonic1"]
[Result "0-1"]
[WhiteElo "1209"]
[BlackElo "2044"]
[TimeControl "300"]
[EndTime "7:43:59 PDT"]
[Termination "SimpleHarmonic1 won by checkmate"]

1. e4 {[%clk 0:04:57.3]} 1... d6 {[%clk 0:04:57.6]} 2. d4 {[%clk 0:04:55.7]}
2... g6 {[%clk 0:04:54.8]} 3. Nf3 {[%clk 0:04:53.7]} 3... Nf6 {[%clk 0:04:53.7]}
4. Nc3 {[%clk 0:04:52]} 4... Bg7 {[%clk 0:04:52]} 5. Bg5 {[%clk 0:04:45.1]} 5...
O-O {[%clk 0:04:51]} 6. Be2 {[%clk 0:04:41.9]} 6... c6 {[%clk 0:04:49.2]} 7. O-O
{[%clk 0:04:40.2]} 7... Nbd7 {[%clk 0:04:48.4]} 8. e5 {[%clk 0:04:35.5]} 8...
dxe5 {[%clk 0:04:42.2]} 9. dxe5 {[%clk 0:04:34.6]} 9... Ne8 {[%clk 0:04:23.1]}
10. Bc4 {[%clk 0:04:19.3]} 10... Nc7 {[%clk 0:04:18.3]} 11. e6 {[%clk
0:04:14.2]} 11... Nxe6 {[%clk 0:04:15.6]} 12. Bxe6 {[%clk 0:04:12.4]} 12... fxe6
{[%clk 0:04:15.5]} 13. Nd4 {[%clk 0:04:08.4]} 13... Nf6 {[%clk 0:04:13.4]} 14.
Qf3 {[%clk 0:03:57.7]} 14... Qxd4 {[%clk 0:04:10.4]} 15. Rad1 {[%clk 0:03:52.9]}
15... Qg4 {[%clk 0:04:06.9]} 16. Qxg4 {[%clk 0:03:47]} 16... Nxg4 {[%clk
0:04:06.8]} 17. Bxe7 {[%clk 0:03:45.2]} 17... Rf7 {[%clk 0:04:03.3]} 18. Ba3
{[%clk 0:03:43.2]} 18... Bd7 {[%clk 0:03:56]} 19. Ne4 {[%clk 0:03:39.2]} 19...
h6 {[%clk 0:03:43.5]} 20. Nd6 {[%clk 0:03:35.4]} 20... Rff8 {[%clk 0:03:31.2]}
21. Rd3 {[%clk 0:03:30.1]} 21... Ne5 {[%clk 0:03:29.2]} 22. Rb3 {[%clk
0:03:16.3]} 22... b6 {[%clk 0:03:26.1]} 23. Re1 {[%clk 0:03:14.2]} 23... c5
{[%clk 0:03:24.5]} 24. c4 {[%clk 0:03:11.7]} 24... Bc6 {[%clk 0:03:22.4]} 25.
Ree3 {[%clk 0:03:09.5]} 25... Rad8 {[%clk 0:03:18.3]} 26. Ne4 {[%clk 0:02:46.2]}
26... Rd1+ {[%clk 0:03:16.3]} 27. Re1 {[%clk 0:02:38.6]} 27... Rxe1# {[%clk
0:03:16.2]} 0-1

[Event "Live Chess"]
[Site "Chess.com"]
[Date "2023.05.21"]
[Round "-"]
[White "BillythekidFellowes"]
[Black "YrrriKharkiv"]
[Result "1-0"]
[WhiteElo "2114"]
[BlackElo "2041"]
[TimeControl "300"]
[EndTime "7:44:00 PDT"]
[Termination "BillythekidFellowes won by resignation"]

1. e4 {[%clk 0:04:56.8]} 1... c5 {[%clk 0:04:56.4]} 2. Nf3 {[%clk 0:04:55.2]}
2... Nc6 {[%clk 0:04:54.3]} 3. Bb5 {[%clk 0:04:53.9]} 3... g6 {[%clk 0:04:51.9]}
4. Bxc6 {[%clk 0:04:52.7]} 4... bxc6 {[%clk 0:04:49.9]} 5. d4 {[%clk 0:04:51.9]}
5... Bg7 {[%clk 0:04:46.4]} 6. c3 {[%clk 0:04:50.2]} 6... cxd4 {[%clk
0:04:45.1]} 7. cxd4 {[%clk 0:04:50.1]} 7... d6 {[%clk 0:04:43.7]} 8. Nc3 {[%clk
0:04:49.3]} 8... Nf6 {[%clk 0:04:42.4]} 9. Bg5 {[%clk 0:04:48.4]} 9... Qa5
{[%clk 0:04:39.7]} 10. O-O {[%clk 0:04:40]} 10... Bg4 {[%clk 0:04:38.8]} 11. e5
{[%clk 0:04:37.1]} 11... dxe5 {[%clk 0:04:34.1]} 12. dxe5 {[%clk 0:04:37]} 12...
Nd5 {[%clk 0:04:29.5]} 13. Nxd5 {[%clk 0:04:33.3]} 13... Qxd5 {[%clk 0:04:25.1]}
14. Qa4 {[%clk 0:04:29.8]} 14... Bxf3 {[%clk 0:04:23.3]} 15. gxf3 {[%clk
0:04:29.7]} 15... Qxf3 {[%clk 0:04:13.2]} 16. Rfe1 {[%clk 0:04:22.4]} 16... h6
{[%clk 0:04:03.1]} 17. Re3 {[%clk 0:04:18.1]} 17... Qd5 {[%clk 0:04:01.9]} 18.
Rd1 {[%clk 0:04:16.8]} 18... Qb5 {[%clk 0:03:58.5]} 19. Qd4 {[%clk 0:04:12.5]}
19... c5 {[%clk 0:03:31.4]} 20. Qd5 {[%clk 0:04:05.9]} 20... Rc8 {[%clk
0:03:19.9]} 21. Rb3 {[%clk 0:04:01.7]} 1-0

[Event "Live Chess"]
[Site "Chess.com"]
[Date "2023.05.21"]
[Round "-"]
[White "jimwad"]
[Black "Cimon"]
[Result "0-1"]
[WhiteElo "1227"]
[BlackElo "1843"]
[TimeControl "300"]
[EndTime "7:44:06 PDT"]
[Termination "Cimon won by resignation"]

1. d4 {[%clk 0:04:56.7]} 1... Nf6 {[%clk 0:04:58.7]} 2. c4 {[%clk 0:04:54.7]}
2... e6 {[%clk 0:04:57.4]} 3. Nc3 {[%clk 0:04:52.9]} 3... d5 {[%clk 0:04:54.2]}
4. Bg5 {[%clk 0:04:51.2]} 4... Be7 {[%clk 0:04:52.4]} 5. e3 {[%clk 0:04:48.8]}
5... a6 {[%clk 0:04:51.2]} 6. Nf3 {[%clk 0:04:47.5]} 6... O-O {[%clk 0:04:49.4]}
7. c5 {[%clk 0:04:45.8]} 7... h6 {[%clk 0:04:45.3]} 8. Bxf6 {[%clk 0:04:44.5]}
8... Bxf6 {[%clk 0:04:43.3]} 9. b4 {[%clk 0:04:43.2]} 9... Nd7 {[%clk
0:04:41.4]} 10. a4 {[%clk 0:04:41.2]} 10... c6 {[%clk 0:04:40.2]} 11. Bd3 {[%clk
0:04:36.6]} 11... e5 {[%clk 0:04:38.7]} 12. dxe5 {[%clk 0:04:34.1]} 12... Nxe5
{[%clk 0:04:36.5]} 13. Nxe5 {[%clk 0:04:32.9]} 13... Bxe5 {[%clk 0:04:35.6]} 14.
O-O {[%clk 0:04:30.7]} 14... Bxc3 {[%clk 0:04:33.7]} 15. Rb1 {[%clk 0:04:27.9]}
15... Be6 {[%clk 0:04:24.2]} 16. b5 {[%clk 0:04:21.5]} 16... axb5 {[%clk
0:04:21.5]} 17. axb5 {[%clk 0:04:20.4]} 17... Qg5 {[%clk 0:04:10.2]} 18. Kh1
{[%clk 0:03:51.2]} 18... Bf5 {[%clk 0:03:55.3]} 19. Bxf5 {[%clk 0:03:46.2]}
19... Qxf5 {[%clk 0:03:53.6]} 20. bxc6 {[%clk 0:03:45.2]} 20... bxc6 {[%clk
0:03:52.7]} 21. Rc1 {[%clk 0:03:35.2]} 21... Bf6 {[%clk 0:03:47.3]} 22. f3
{[%clk 0:03:25.6]} 22... Qe5 {[%clk 0:03:34.5]} 23. Qe2 {[%clk 0:03:13.9]} 23...
Rfe8 {[%clk 0:03:27.9]} 24. Rfe1 {[%clk 0:03:03.7]} 24... Reb8 {[%clk
0:03:18.7]} 25. f4 {[%clk 0:03:00.9]} 25... Qb2 {[%clk 0:03:11.3]} 26. Qxb2
{[%clk 0:02:58.4]} 26... Rxb2 {[%clk 0:03:09.5]} 27. e4 {[%clk 0:02:52.6]} 27...
dxe4 {[%clk 0:03:02.6]} 28. Rxe4 {[%clk 0:02:51.3]} 28... Raa2 {[%clk
0:02:58.5]} 29. Re8+ {[%clk 0:02:41.8]} 29... Kh7 {[%clk 0:02:57.1]} 30. Rg1
{[%clk 0:02:39.3]} 30... Bd4 {[%clk 0:02:50.3]} 0-1

[Event "Live Chess"]
[Site "Chess.com"]
[Date "2023.05.21"]
[Round "-"]
[White "OleksiyJr1"]
[Black "Olisingapore"]
[Result "0-1"]
[WhiteElo "1043"]
[BlackElo "1785"]
[TimeControl "300"]
[EndTime "7:44:10 PDT"]
[Termination "Olisingapore won by resignation"]

1. e4 {[%clk 0:04:58.4]} 1... c5 {[%clk 0:04:58.1]} 2. Nf3 {[%clk 0:04:57.6]}
2... d6 {[%clk 0:04:57.5]} 3. d4 {[%clk 0:04:56]} 3... cxd4 {[%clk 0:04:57.4]}
4. Qxd4 {[%clk 0:04:55.5]} 4... Nc6 {[%clk 0:04:56]} 5. Bb5 {[%clk 0:04:55.1]}
5... Bd7 {[%clk 0:04:54.7]} 6. Bxc6 {[%clk 0:04:55]} 6... Bxc6 {[%clk
0:04:54.6]} 7. Nc3 {[%clk 0:04:53.6]} 7... Nf6 {[%clk 0:04:54]} 8. Qd3 {[%clk
0:04:50.9]} 8... e6 {[%clk 0:04:52.9]} 9. Be3 {[%clk 0:04:48.5]} 9... Be7 {[%clk
0:04:52.4]} 10. O-O-O {[%clk 0:04:47.9]} 10... O-O {[%clk 0:04:48.4]} 11. Kb1
{[%clk 0:04:46.7]} 11... Qc7 {[%clk 0:04:29.1]} 12. Rhe1 {[%clk 0:04:22.9]}
12... b5 {[%clk 0:04:24.6]} 13. Nxb5 {[%clk 0:04:13.3]} 13... Bxb5 {[%clk
0:04:22.3]} 14. Qxb5 {[%clk 0:04:11.7]} 14... Nxe4 {[%clk 0:04:20.9]} 15. Qe2
{[%clk 0:04:06.1]} 15... Rab8 {[%clk 0:04:16.4]} 16. Bd4 {[%clk 0:03:46.8]}
16... e5 {[%clk 0:03:59]} 17. Be3 {[%clk 0:03:14.5]} 17... Nc3+ {[%clk
0:03:55.8]} 0-1

[Event "Live Chess"]
[Site "Chess.com"]
[Date "2023.05.21"]
[Round "-"]
[White "lHolyDiverl"]
[Black "SupremeTactician"]
[Result "0-1"]
[WhiteElo "555"]
[BlackElo "2199"]
[TimeControl "300"]
[EndTime "7:44:15 PDT"]
[Termination "SupremeTactician won on time"]

1. d4 {[%clk 0:04:55.9]} 1... Nf6 {[%clk 0:04:58.5]} 2. Nc3 {[%clk 0:04:54.8]}
2... e6 {[%clk 0:04:58.4]} 3. Bf4 {[%clk 0:04:53.5]} 3... d5 {[%clk 0:04:57.9]}
4. e3 {[%clk 0:04:51.1]} 4... Bd6 {[%clk 0:04:56.3]} 5. Bg3 {[%clk 0:04:37.9]}
5... Bxg3 {[%clk 0:04:54.2]} 6. hxg3 {[%clk 0:04:34.8]} 6... Bd7 {[%clk
0:04:52.2]} 7. Bd3 {[%clk 0:04:29.3]} 7... Nc6 {[%clk 0:04:51.1]} 8. a3 {[%clk
0:04:26.3]} 8... Qe7 {[%clk 0:04:48.6]} 9. Nf3 {[%clk 0:04:23.7]} 9... h6 {[%clk
0:04:47.9]} 10. Ne5 {[%clk 0:04:15]} 10... Nxe5 {[%clk 0:04:46.2]} 11. dxe5
{[%clk 0:04:13.3]} 11... Ne4 {[%clk 0:04:43]} 12. Nxe4 {[%clk 0:04:08.8]} 12...
dxe4 {[%clk 0:04:41.7]} 13. Bxe4 {[%clk 0:04:05.4]} 13... O-O-O {[%clk
0:04:39.4]} 14. Qd4 {[%clk 0:03:30.9]} 14... Kb8 {[%clk 0:04:36.9]} 15. Qb4
{[%clk 0:03:07.3]} 15... Qxb4+ {[%clk 0:04:33]} 16. axb4 {[%clk 0:03:04.9]}
16... Bb5 {[%clk 0:04:30.3]} 17. b3 {[%clk 0:02:32.7]} 17... g6 {[%clk 0:04:23]}
18. c4 {[%clk 0:02:30]} 18... Bd7 {[%clk 0:04:16]} 19. O-O {[%clk 0:02:27.4]}
19... Bc8 {[%clk 0:04:11.9]} 20. Ra2 {[%clk 0:02:06.2]} 20... c6 {[%clk
0:03:58.8]} 21. Rfa1 {[%clk 0:01:45.5]} 21... a6 {[%clk 0:03:57]} 22. b5 {[%clk
0:01:38.8]} 22... cxb5 {[%clk 0:03:56.1]} 23. cxb5 {[%clk 0:01:36.3]} 23... Ka7
{[%clk 0:03:43]} 24. bxa6 {[%clk 0:01:05.6]} 24... bxa6 {[%clk 0:03:42.9]} 25.
b4 {[%clk 0:01:01.8]} 25... Kb6 {[%clk 0:03:37.9]} 26. Bd3 {[%clk 0:00:30.5]}
26... Bb7 {[%clk 0:03:28.3]} 27. Bxa6 {[%clk 0:00:23.2]} 27... Ra8 {[%clk
0:03:27.1]} 28. Bxb7 {[%clk 0:00:19.6]} 28... Rxa2 {[%clk 0:03:27]} 29. Rxa2
{[%clk 0:00:18.8]} 29... Kxb7 {[%clk 0:03:26.6]} 30. b5 {[%clk 0:00:16.2]} 30...
Kb6 {[%clk 0:03:25.9]} 31. Rb2 {[%clk 0:00:14.3]} 31... Rc8 {[%clk 0:03:25.1]}
32. Kh2 {[%clk 0:00:09.2]} 32... Rc5 {[%clk 0:03:24.2]} 33. g4 {[%clk
0:00:06.7]} 33... Rxe5 {[%clk 0:03:23.3]} 34. g3 {[%clk 0:00:05.4]} 34... Rc5
{[%clk 0:03:21]} 35. f4 {[%clk 0:00:03.7]} 35... Rc3 {[%clk 0:03:20]} 36. e4
{[%clk 0:00:01.8]} 36... Re3 {[%clk 0:03:17.6]} 0-1

[Event "Live Chess"]
[Site "Chess.com"]
[Date "2023.05.21"]
[Round "-"]
[White "ProfPoisson"]
[Black "LL220284LL"]
[Result "0-1"]
[WhiteElo "1225"]
[BlackElo "2232"]
[TimeControl "300"]
[EndTime "7:44:15 PDT"]
[Termination "LL220284LL won by resignation"]

1. e4 {[%clk 0:04:55.7]} 1... d5 {[%clk 0:04:59]} 2. exd5 {[%clk 0:04:54]} 2...
Qxd5 {[%clk 0:04:58.9]} 3. Nc3 {[%clk 0:04:52]} 3... Qa5 {[%clk 0:04:57.5]} 4.
b4 {[%clk 0:04:50.1]} 4... Qxb4 {[%clk 0:04:56.1]} 5. Nb5 {[%clk 0:04:47.7]}
5... Qa5 {[%clk 0:04:48.3]} 6. Bc4 {[%clk 0:04:45]} 6... Nf6 {[%clk 0:04:36.2]}
7. Nf3 {[%clk 0:04:11.2]} 7... a6 {[%clk 0:04:34.4]} 8. Nc3 {[%clk 0:04:03.1]}
8... b5 {[%clk 0:04:33.2]} 9. Bb3 {[%clk 0:03:59.5]} 9... Bb7 {[%clk 0:04:31.9]}
10. O-O {[%clk 0:03:57.6]} 10... c5 {[%clk 0:04:30.5]} 11. a4 {[%clk 0:03:46.7]}
11... b4 {[%clk 0:04:28.4]} 12. Ne2 {[%clk 0:03:42.1]} 12... e6 {[%clk
0:04:26.9]} 13. Bb2 {[%clk 0:03:36.8]} 13... Be7 {[%clk 0:04:25.7]} 14. d4
{[%clk 0:03:29.4]} 14... Nbd7 {[%clk 0:04:24.8]} 15. dxc5 {[%clk 0:03:27.6]}
15... Nxc5 {[%clk 0:04:24.7]} 16. Ne5 {[%clk 0:02:58.4]} 16... O-O {[%clk
0:04:20.8]} 17. Nc4 {[%clk 0:02:56.8]} 17... Qd8 {[%clk 0:04:15.9]} 18. Qc1
{[%clk 0:02:45.1]} 18... Nd5 {[%clk 0:04:10]} 19. Rd1 {[%clk 0:02:39.6]} 19...
Bf6 {[%clk 0:04:09.5]} 20. Bxf6 {[%clk 0:02:36.6]} 20... Qxf6 {[%clk 0:04:09.4]}
21. Nd6 {[%clk 0:02:30.8]} 21... Bc6 {[%clk 0:04:07.1]} 22. Nd4 {[%clk
0:02:20.6]} 22... Bd7 {[%clk 0:03:50.4]} 23. Bxd5 {[%clk 0:02:09.8]} 23... exd5
{[%clk 0:03:47.1]} 24. N6f5 {[%clk 0:01:43.9]} 24... Bxf5 {[%clk 0:03:44.1]} 25.
Nxf5 {[%clk 0:01:41.6]} 25... Qxf5 {[%clk 0:03:44]} 26. Qd2 {[%clk 0:01:23.1]}
26... Ne4 {[%clk 0:03:41.4]} 27. Qxd5 {[%clk 0:01:16.5]} 27... Qxf2+ {[%clk
0:03:39.6]} 28. Kh1 {[%clk 0:01:14.3]} 28... Nc3 {[%clk 0:03:39.5]} 29. Qd2
{[%clk 0:01:02.9]} 29... Nxd1 {[%clk 0:03:37.8]} 30. Qxf2 {[%clk 0:01:01.3]}
30... Nxf2+ {[%clk 0:03:37.7]} 0-1